Cogmind - Beta 15 @@@ ROGUE MODE // 2025.06.18 @ 21:41:11 Player: Briarspitter Result: Destroyed by G-67 Veteran with Plasma Rifle Performance ------------- Evolutions (6) 3000 Regions Visited (12) 2400 Robots Destroyed (85) 425 Value Destroyed (2979) 2979 Prototype IDs (8) 160 Alien Tech Used (0) 0 Bonus (475) 475 TOTAL SCORE: 9439 Bonus ------- Follower Combat Kills 475 Cogmind --------- Core Integrity 0/1150 Matter 119/300 Energy 94/100 System Corruption 14% Temperature Cool (0) Movement Core (50) Location -4/Factory Parts ------- > --- POWER (2) -------- (None) > --- PROPULSION (3) --- (None) > --- UTILITY (10) ----- Improved Transmission Jammer Experimental Propulsion Shielding Experimental Propulsion Shielding > --- WEAPON (4) ------- (None) > --- INVENTORY (5) ---- Combat Linear Gravjet Reaction Control System Graphene Brace Point Defense System Peak State ------------ > --- POWER ------------ Improved Deuterium Engine Light Antimatter Reactor > --- PROPULSION ------- Improved Carbon-fiber Leg Improved Titanium Leg Armored Leg > --- UTILITY ---------- Large Storage Unit Compact Battery Gravity Neutralizer Gravity Neutralizer Gravity Neutralizer Microactuators Hardened Heavy Armor Plating Layered Medium Armor Plating Improved Hardlight Generator > --- WEAPON ----------- Long-range Proton Cannon Scythe Axe Spear > --- INVENTORY -------- Light Nuclear Core Light Neutrino Core Improved Titanium Leg Improved Cryofiber Web Advanced Heat Sink Large Matter Pod Improved Hardlight Generator Point Defense System Thermic Laser Phase Gun Advanced Plasma Cannon Coil Gun Heavy Machine Gun Remote Datajack Improved Plasma Cutter [Rating: 91] Favorites ----------- Power Subdweller Power Source Engine Subdweller Power Source Power Core Light Nuclear Core Reactor Light Antimatter Reactor Propulsion Improved Titanium Leg Leg Improved Titanium Leg Wheel Subdweller Monowheel Hover Unit Gravmag System Flight Unit Impulse Thruster Utility Large Storage Unit Device ECM Suite Storage Large Storage Unit Processor Improved Signal Interpreter Hackware System Shield Protection Hardened Light Armor Plating Weapon Autogun Energy Gun Subdweller Laser Energy Cannon Advanced Plasma Cannon Ballistic Gun Autogun Ballistic Cannon Flak Cannon Launcher Grenade Launcher Special Weapon Mining Laser Impact Weapon Power Maul Slashing Weapon Scythe Piercing Weapon Spear Special Melee Weapon Improved Datajack Build | -11 -10 -10 -8 -8 -7 -6 -5 -5 -5 -4 -4 -4 ------- Run | Yrd Mat Sub Mat Sto Fac Fac Fac Upp Upp Fac Was Fac Slots Evolved 12 | . . . 4 . 2 2 2 . . 2 . . Power 1 | . . . . . 1 . . . . . . . Propulsion 1 | . . . . . . 1 . . . . . . Utility 8 | . . . 4 . 1 1 2 . . . . . Weapon 2 | . . . . . . . . . . 2 . . Parts Attached 139 | 9 19 8 8 18 16 24 7 8 . 20 1 1 Power 17 | 1 2 1 1 2 2 4 2 1 . 1 . . Engine 9 | 1 1 1 1 2 . 2 . . . 1 . . Core 7 | . 1 . . . 2 2 2 . . . . . Reactor 1 | . . . . . . . . 1 . . . . Propulsion 29 | 3 5 4 . 2 3 8 1 . . 2 1 . Treads . | . . . . . . . . . . . . . Leg 22 | 2 5 2 . 2 3 7 1 . . . . . Wheel 3 | 1 . 2 . . . . . . . . . . Hover 3 | . . . . . . 1 . . . 1 1 . Flight 1 | . . . . . . . . . . 1 . . Utility 51 | 3 4 . 6 6 3 7 3 6 . 12 . 1 Device 27 | 2 . . 4 1 . 5 3 4 . 7 . 1 Storage 5 | 1 2 . . 1 . . . 1 . . . . Processor 3 | . 1 . . 1 . 1 . . . . . . Hackware 2 | . . . . 1 1 . . . . . . . Protection 14 | . 1 . 2 2 2 1 . 1 . 5 . . Artifact . | . . . . . . . . . . . . . Weapon 42 | 2 8 3 1 8 8 5 1 1 . 5 . . Energy Gun 14 | 1 4 2 . 2 3 . . . . 2 . . Energy Cannon 3 | . . . . . . 2 . . . 1 . . Ballistic Gun 6 | 1 2 . 1 2 . . . . . . . . Ballistic Cannon 2 | . . . . 1 1 . . . . . . . Launcher 1 | . 1 . . . . . . . . . . . Special Weapon 3 | . 1 . . . . 1 . 1 . . . . Impact Weapon 4 | . . . . 2 2 . . . . . . . Slashing Weapon 5 | . . . . . 2 1 1 . . 1 . . Piercing Weapon 1 | . . . . . . 1 . . . . . . Special Melee Weapon 3 | . . 1 . 1 . . . . . 1 . . Unidentified Prototypes 5 | . . . . 2 . . 1 . . 2 . . Corrupted Parts 1 | . . . . . . 1 . . . . . . System Corruption 5 | . . . . . . 5 . . . . . . Parts Lost 61 | . 4 . 2 3 3 11 2 8 1 23 4 . Power 8 | . . . 1 . 2 2 . . . 3 . . Propulsion 11 | . . . . . . 3 . 1 . 5 2 . Utility 26 | . 1 . 1 2 . 6 1 7 . 7 1 . Weapon 16 | . 3 . . 1 1 . 1 . 1 8 1 . Highest Loss Streak 20 | . 4 . 2 2 1 7 2 6 1 20 3 . To Critical Strikes 2 | . . . . . . 1 . . . 1 . . Average Backups 12 | 3 10 14 14 14 14 11 14 14 14 9 3 4 Power . | . . 1 . . . . 1 2 2 . . . Propulsion 1 | 2 2 1 3 2 1 . 2 2 1 . . 1 Utility 5 | . 5 9 7 6 7 2 2 1 2 3 3 3 Weapon 4 | 1 1 2 2 3 5 6 7 7 7 3 . . Tool/Special . | . . . . . . . . . . . . . Unused Backups 46 | . 11 2 4 10 11 2 . 1 . 3 . 2 Power 7 | . 2 1 . 4 . . . . . . . . Propulsion 6 | . 2 . 3 . . . . . . . . 1 Utility 23 | . 6 1 1 3 8 1 . 1 . 1 . 1 Weapon 10 | . 1 . . 3 3 1 . . . 2 . . Tool/Special . | . . . . . . . . . . . . . Average Slot Usage (%) 94 | . 98 100 97 99 97 90 92 93 87 56 24 12 Engine 5 | . 4 14 9 9 7 3 5 . . 2 . . Core 4 | . 9 . . . 4 4 2 5 5 . . . Leg 17 | . 28 25 . 15 14 17 17 16 17 7 . . Wheel 1 | . . 2 17 2 . . . . . . . . Device 19 | . 9 . 32 25 12 17 37 35 29 15 2 2 Storage 10 | . 14 14 9 9 7 10 11 11 11 5 . . Processor 2 | . . . . 1 7 4 . . . . . . Hackware 4 | . . . . 4 14 8 5 . . . . . Protection 7 | . 3 14 11 13 9 6 . 4 5 7 15 10 Energy Gun 5 | . 7 16 17 4 6 . . . . . . . Ballistic Gun 5 | . 17 . . 10 . . . . . . . . Special Weapon 1 | . 2 11 . . . 1 . . . . . . Impact Weapon 1 | . . . . 1 3 1 . 1 4 . . . Piercing Weapon 1 | . . . . . . . 2 5 5 4 . . Peak Build Rating 91 | 9 14 15 24 33 41 63 75 86 74 91 47 20 Average Rating 38 | 5 11 11 23 28 39 49 67 81 73 55 31 19 On Entrance 35 | . 7 11 15 23 30 40 58 75 74 70 41 14 Naked Turns . | . . . . . . . . . . . . . Heaviest Build 101 | 12 36 38 46 46 50 60 63 86 76 101 6 3 Greatest Support 66 | 10 20 40 49 49 40 60 59 59 56 66 14 3 Greatest Overweight (x) 13 | 2 1 1 2 2 2 2 1 2 1 13 1 . Average Overweight (x) . | . . . . 1 . . . . 1 . . . Largest Inventory Capacity 15 | 8 15 15 15 15 15 15 15 15 15 15 5 5 Average Capacity 13 | 7 11 15 15 14 15 15 15 15 15 10 5 5 Most Carried 15 | 5 15 15 15 15 15 15 15 15 14 15 4 4 Average Carried 12 | 3 10 14 14 14 14 11 14 14 14 9 3 4 Final Capacity 15 | 8 15 15 15 15 15 15 15 15 15 5 5 5 Final Carried 15 | 4 15 15 15 15 15 15 15 14 14 4 4 4 Class Distribution -------------------- 39% | Mutant 19% | Hacker-Mutant 14% | Scavenger-Mutant 9% | Gladiator 7% | Commander-Mutant 5% | Scavenger-Gladiator Dominant Class ---------------- Mutant | -10/Materials Mutant | -10/Subcaves Scavenger-Mutant | -8/Materials Mutant | -8/Storage Hacker-Mutant | -7/Factory Mutant | -6/Factory Infiltrator-Gladiator | -5/Factory Gladiator | -5/Upper Caves Scavenger-Gladiator | -5/Upper Caves Mutant | -4/Factory Mutant | -4/Waste Mutant | -4/Factory Resources | -11 -10 -10 -8 -8 -7 -6 -5 -5 -5 -4 -4 -4 ----------- Run | Yrd Mat Sub Mat Sto Fac Fac Fac Upp Upp Fac Was Fac Matter Collected 4100 | 238 861 182 176 656 445 707 68 667 . 100 . . Remotely . | . . . . . . . . . . . . . Salvage Created 3996 | 25 645 129 262 679 440 1091 68 444 100 113 . . Parts 184 | 3 41 9 8 49 15 36 1 14 2 6 . . Haulers Intercepted 3 | . 1 . . 2 . . . . . . . . Recyclers Shooed 2 | . . . . . . 2 . . . . . . Parts Field Recycled . | . . . . . . . . . . . . . Retrieved Matter . | . . . . . . . . . . . . . Parts Self-Destructed 22 | . . 8 . . . . . 9 5 . . . Prevented 4 | . . . . . . . . 4 . . . . Kills | -11 -10 -10 -8 -8 -7 -6 -5 -5 -5 -4 -4 -4 ------- Run | Yrd Mat Sub Mat Sto Fac Fac Fac Upp Upp Fac Was Fac Combat Hostiles Destroyed 64 | . 13 . 5 13 6 16 1 3 5 2 . . Melee 10 | . . . . . . 2 1 2 3 2 . . Guns 30 | . 12 . 5 13 . . . . . . . . Cannons 11 | . . . . . 4 7 . . . . . . AOE 5 | . 1 . . . . 4 . . . . . . Classes Destroyed 13 | 1 6 . 1 1 3 1 . . . . . . Worker 4 | . . . . 1 2 1 . . . . . . Tunneler 1 | 1 . . . . . . . . . . . . Hauler 3 | . 1 . . 2 . . . . . . . . Recycler 5 | . . . . . 1 4 . . . . . . Mechanic 2 | . 1 . . . 1 . . . . . . . Operator 3 | . 1 . . 2 . . . . . . . . Watcher 3 | . 3 . . . . . . . . . . . Swarmer 18 | . 2 . . 4 . 7 . . 5 . . . Grunt 23 | . 11 . 3 2 1 3 1 2 . . . . Sentry 14 | . . . 2 7 3 1 . 1 . . . . Specialist 2 | . . . . . . 2 . . . . . . Hunter 3 | . . . . . 1 2 . . . . . . Programmer 4 | . . . . . 1 1 . . . 2 . . Best Kill Streak 5 | 1 4 . 2 4 2 5 1 2 5 1 . . Combat Bots Only 5 | . 4 . 2 3 1 4 1 2 5 1 . . Max Kills in Single Turn 5 | 1 1 . 1 1 2 5 1 1 1 1 . . Gunslinging . | . . . . . . . . . . . . . Exploded 4 | . 1 . . . . 4 . . . . . . Melee 1 | . . . . . . 1 1 1 1 1 . . Uniques/NPCs Destroyed . | . . . . . . . . . . . . . Combat | -11 -10 -10 -8 -8 -7 -6 -5 -5 -5 -4 -4 -4 -------- Run | Yrd Mat Sub Mat Sto Fac Fac Fac Upp Upp Fac Was Fac Hostile Shots Fired 894 | . 81 52 36 67 128 173 21 86 76 165 4 5 Missed 258 | . 23 18 8 23 49 41 8 15 17 55 . 1 Hits 636 | . 58 34 28 44 79 132 13 71 59 110 4 4 Melee 5 | . . . . . . 1 . . . . 4 . Projectile 631 | . 58 34 28 44 79 131 13 71 59 110 . 4 AOE 5 | . . . . 1 . 2 . . . 2 . . Critical Strikes 24 | . 1 . . 1 4 4 1 7 1 4 1 . Part Disruptions 1 | . . . . . 1 . . . . . . . Damage Taken 9997 | . 638 211 522 669 965 2168 242 1240 570 2254 198 320 Core 2169 | . 53 38 136 82 107 339 55 181 26 634 198 320 Absorbed by Shields 540 | . . . . . . . . 186 354 . . . Redirected to Shielding 15 | . . . . . . . . . . 15 . . Regen/Repaired (Parts) 172 | . . . 27 145 . . . . . . . . Core Remaining (%) 73 | 100 . 63 . 60 84 60 . . 73 . . . Volleys Fired 217 | 1 73 8 18 43 30 23 5 14 . 2 . . Largest 2 | 2 2 2 2 2 2 2 2 1 . 1 . . Hottest 196 | 70 100 120 120 100 110 196 196 20 . 81 . . Shots Fired 368 | 2 133 13 30 79 45 41 9 14 . 2 . . Gun 270 | 2 122 13 26 78 28 1 . . . . . . Cannon 64 | . . . . . 17 36 9 . . 2 . . Launcher 1 | . 1 . . . . . . . . . . . Special 33 | . 10 . 4 1 . 4 . 14 . . . . Kinetic 172 | 1 94 . 2 56 17 2 . . . . . . Thermal 148 | 1 30 10 28 23 . 35 9 12 . . . . Explosive 1 | . 1 . . . . . . . . . . . Electromagnetic 41 | . 8 3 . . 28 . . . . 2 . . Robot Hit Streak 19 | 2 7 13 13 19 14 7 2 6 . . . . Robot Miss Streak 4 | . 3 1 1 4 3 4 4 1 . 2 . . Penetration Max . | . . . . . . . . . . . . . Secondary Targets 4 | . 2 . 1 1 . . . . . . . . Max Gunslinging Chain 1 | . 1 . 1 1 . . . . . . . . Shots Hit Robots 326 | 2 68 12 21 67 46 45 6 30 9 19 1 . Core Hits 141 | 1 32 7 8 25 30 21 2 10 1 4 . . Critical Kills 2 | . . . . 1 . 1 . . . . . . Critical Parts Destroyed 7 | . . . 1 . 1 2 . . 3 . . . Critical Strikes 17 | . . . 1 1 3 4 . 3 3 2 . . Destroy 1 | . . . 1 . . . . . . . . . Corrupt 2 | . . . . . 2 . . . . . . . Smash 8 | . . . . 1 1 3 . . 3 . . . Sever 2 | . . . . . . 1 . . . 1 . . Impale 4 | . . . . . . . . 3 . 1 . . Melee Attacks 136 | . . 2 . 19 15 32 5 26 10 26 1 . Impact 54 | . . . . 4 12 25 . 4 9 . . . Slashing 14 | . . . . . . 7 . 4 . 3 . . Piercing 44 | . . . . . . . 5 18 1 20 . . Sneak Attacks 24 | . . . . 14 4 1 . . 1 3 1 . Combat Hostiles 1 | . . . . . . . . . 1 . . . Follow-up Attacks 11 | . . . . . . 4 . 5 1 1 . . Damage Inflicted 8046 | 22 991 193 420 957 1116 2515 189 756 447 440 . . Guns 2766 | 22 948 193 420 903 263 17 . . . . . . Cannons 1247 | . . . . . 338 779 130 . . . . . Explosions 797 | . 43 . . . 105 649 . . . . . . Melee 3052 | . . . . 54 407 1050 59 595 447 440 . . Ramming 23 | . . . . . 3 20 . . . . . . Kinetic 1723 | 10 759 . 33 539 338 44 . . . . . . Thermal 2755 | 12 101 143 387 364 56 1401 130 161 . . . . Explosive 43 | . 43 . . . . . . . . . . . Electromagnetic 450 | . 88 50 . . 312 . . . . . . . Impact 1921 | . . . . 54 407 919 . 119 422 . . . Slashing 343 | . . . . . . 131 . 124 . 88 . . Piercing 788 | . . . . . . . 59 352 25 352 . . Highest Corruption 14 | . . . . . 4 6 . . . 7 13 14 Average Corruption 4 | . . . . . 1 5 . . . 6 12 13 Corruption Purged . | . . . . . . . . . . . . . Corruption Blocked . | . . . . . . . . . . . . . Effects 55 | . . . . . 9 27 . . . 9 9 1 Message Errors 14 | . . . . . 2 11 . . . . 1 . Matter Fused 16 | . . . . . 4 5 . . . 5 2 . Heat Flow Errors 5 | . . . . . 2 1 . . . 1 . 1 Energy Discharges 5 | . . . . . . 3 . . . 2 . . Parts Rejected 1 | . . . . . 1 . . . . . . . Data Loss (minor) 3 | . . . . . . 2 . . . . 1 . Data Loss (major) 1 | . . . . . . . . . . 1 . . Misfires 1 | . . . . . . 1 . . . . . . Alerts 2 | . . . . . . 2 . . . . . . Misdirections 5 | . . . . . . . . . . . 5 . Weapon Failures 2 | . . . . . . 2 . . . . . . Overload Shots . | . . . . . . . . . . . . . Overflow Damage 744 | . 33 . . . 125 354 . 1 208 23 . . Projectiles 21 | . . . . . 4 16 . 1 . . . . Explosions 92 | . 33 . . . . 59 . . . . . . Melee 631 | . . . . . 121 279 . . 208 23 . . Knockbacks 9 | . . . . . 4 5 . . . . . . Impact 8 | . . . . . 3 5 . . . . . . Kinetic 1 | . . . . . 1 . . . . . . . Secondary . | . . . . . . . . . . . . . Self-Inflicted Damage 106 | . 40 . . . 66 . . . . . . . Shots 3 | . 1 . . . 2 . . . . . . . Rammed . | . . . . . . . . . . . . . Targets Rammed 3 | . . . . . 1 2 . . . . . . Kicked 3 | . . . . . 1 2 . . . . . . Crushed . | . . . . . . . . . . . . . Highest Temperature 540 | 30 210 45 540 168 118 336 429 16 . 239 . 60 Average Temperature 73 | 18 32 18 181 52 34 95 228 9 . 87 . 38 Received Heat Transfer 2083 | . 243 174 243 207 93 366 135 460 36 108 . 18 Effects 11 | . . . 4 . . 4 3 . . . . . Shutdowns 3 | . . . 2 . . . 1 . . . . . Energy Bleed 2 | . . . 1 . . 1 . . . . . . Interference 4 | . . . . . . 3 1 . . . . . Damage (minor) 1 | . . . . . . . 1 . . . . . Damage (core) 1 | . . . 1 . . . . . . . . . Siege Activations . | . . . . . . . . . . . . . Martial Activations . | . . . . . . . . . . . . . Shielding Activations . | . . . . . . . . . . . . . Robots Disrupted . | . . . . . . . . . . . . . Combat Hostiles . | . . . . . . . . . . . . . Robots Corrupted 9 | . . . . . 2 4 . 1 2 . . . Combat Hostiles 8 | . . . . . 2 3 . 1 2 . . . Parts Fried 14 | . . . . . 2 9 . . 3 . . . Impact Corruptions 26 | . . . . . 7 10 . 1 8 . . . Robots Melted . | . . . . . . . . . . . . . Combat Hostiles . | . . . . . . . . . . . . . Parts Melted 5 | . . . 1 . . 4 . . . . . . Heat Transferred 3444 | 37 287 175 475 450 . 1450 200 370 . . . . Parts Sabotaged . | . . . . . . . . . . . . . Parts Stolen . | . . . . . . . . . . . . . Parts Stripped . | . . . . . . . . . . . . . Power Chain Reactions 1 | . . . . . 1 . . . . . . . Alert | -11 -10 -10 -8 -8 -7 -6 -5 -5 -5 -4 -4 -4 ------- Run | Yrd Mat Sub Mat Sto Fac Fac Fac Upp Upp Fac Was Fac Maximum Alert Level 1 | . . . . 1 . 1 . . . . . . Low Security (%) 90 | 100 100 . 100 73 100 63 100 . . 100 100 100 Level 1 9 | . . . . 26 . 36 . . . . . . Level 2 . | . . . . . . . . . . . . . Level 3 . | . . . . . . . . . . . . . Level 4 . | . . . . . . . . . . . . . Level 5 . | . . . . . . . . . . . . . High Security . | . . . . . . . . . . . . . Max Security . | . . . . . . . . . . . . . Peak Influence 295 | 5 84 . 34 295 152 264 91 . . 118 41 24 Initial 121 | . . . . 7 121 12 91 . . 46 41 . Average 46 | . 21 . 5 86 39 101 28 . . 10 14 4 Influence Increases 3024 | 5 427 90 132 711 548 573 43 80 185 206 . 24 Destroy 0b10 Robot/C 1600 | . 260 . 100 380 260 320 20 60 100 100 . . Destroy 0b10 Robot/NC 125 | 5 30 . . 25 25 30 . 10 . . . . Destroy Leader 424 | . 68 . 30 124 100 72 . 10 10 10 . . Allied During Kill 224 | . . . . 131 87 . . . . 6 . . Successful Hack 85 | . 9 . . 18 10 24 . . . . . 24 Disable Machine 210 | . 15 . . 30 60 75 15 . . 15 . . Destroy Structure 56 | . 15 . 2 3 6 22 8 . . . . . Lose Combat Pursuer 300 | . 30 90 . . . 30 . . 75 75 . . Influence Decreases 3000 | 5 390 127 114 462 789 413 229 80 110 163 118 . Entered New Map 390 | . . 18 . 11 146 14 95 . . 29 77 . Time Decay 2223 | 5 350 109 94 421 536 310 114 70 100 94 20 . Lost Part 272 | . 40 . 20 30 12 89 20 10 10 40 1 . Lost Ally 115 | . . . . . 95 . . . . . 20 . Squads Dispatched 21 | . 4 . 1 1 7 5 . . . 3 . . Investigation 7 | . 3 . 1 . 3 . . . . . . . Extermination 6 | . . . . . 3 2 . . . 1 . . Reinforcement 7 | . 1 . . 1 1 3 . . . 1 . . Assault . | . . . . . . . . . . . . . Garrison 1 | . . . . . . . . . . 1 . . Intercept . | . . . . . . . . . . . . . Searches Triggered . | . . . . . . . . . . . . . Construction Impeded 2 | . . . . . 1 . . . . 1 . . Haulers Reinforced . | . . . . . . . . . . . . . Active Scanning Responses . | . . . . . . . . . . . . . Cargo Convoy Interrupts . | . . . . . . . . . . . . . Stealth | -11 -10 -10 -8 -8 -7 -6 -5 -5 -5 -4 -4 -4 --------- Run | Yrd Mat Sub Mat Sto Fac Fac Fac Upp Upp Fac Was Fac Distress Signals 6 | . . . 1 3 . . . . . 2 . . Communications Jammed 1 | . . . . . . . . . . . . 1 Distress Signals 1 | . . . . . . . . . . . . 1 Times Spotted 153 | . 24 5 5 32 9 25 1 10 13 19 6 4 Peak Tracking Total 7 | . 3 3 3 5 2 5 1 5 7 7 5 4 Tactical Retreats 20 | . 2 2 1 4 . 4 . 1 2 3 1 . Traps | -11 -10 -10 -8 -8 -7 -6 -5 -5 -5 -4 -4 -4 ------- Run | Yrd Mat Sub Mat Sto Fac Fac Fac Upp Upp Fac Was Fac Traps Triggered 8 | . 1 . . 1 4 . . . . 1 . 1 Indirectly 1 | . . . . . 1 . . . . . . . Trap Hack Attempts . | . . . . . . . . . . . . . Triggered . | . . . . . . . . . . . . . Disarmed . | . . . . . . . . . . . . . Reprogrammed . | . . . . . . . . . . . . . Reused . | . . . . . . . . . . . . . Traps Extracted . | . . . . . . . . . . . . . Installed . | . . . . . . . . . . . . . Triggered . | . . . . . . . . . . . . . Machines | -11 -10 -10 -8 -8 -7 -6 -5 -5 -5 -4 -4 -4 ---------- Run | Yrd Mat Sub Mat Sto Fac Fac Fac Upp Upp Fac Was Fac Machines Disabled 15 | . 2 . . 2 4 5 1 . . 1 . . Max in Single Turn 4 | . 1 . . 1 3 4 1 . . . . . Garrison Access 1 | . . . . 1 . . . . . . . . Machines Repaired . | . . . . . . . . . . . . . Machines Dismantled . | . . . . . . . . . . . . . Machines Sabotaged . | . . . . . . . . . . . . . Overloaded Fab Kills . | . . . . . . . . . . . . . Hacking | -11 -10 -10 -8 -8 -7 -6 -5 -5 -5 -4 -4 -4 --------- Run | Yrd Mat Sub Mat Sto Fac Fac Fac Upp Upp Fac Was Fac Machines Accessed 36 | . 9 . 4 7 8 6 1 . . . . 1 Terminals 20 | . 6 . 1 5 4 2 1 . . . . 1 Fabricators 2 | . . . . . 1 1 . . . . . . Repair Stations 4 | . 1 . 1 1 1 . . . . . . . Recycling Units 7 | . 2 . 1 . 1 3 . . . . . . Scanalyzers 2 | . . . 1 . 1 . . . . . . . Garrison Access 1 | . . . . 1 . . . . . . . . Total Hacks 113 | . 25 . 12 25 29 13 6 . . . . 3 Successful 73 | . 14 . 8 18 22 6 3 . . . . 2 Failed 40 | . 11 . 4 7 7 7 3 . . . . 1 Catastrophic 2 | . . . . . . 1 . . . . . 1 Database Lockouts . | . . . . . . . . . . . . . Manual 1 | . . . . 1 . . . . . . . . Terminals 59 | . 16 . 2 17 11 4 6 . . . . 3 Fabricators 5 | . . . . . 3 2 . . . . . . Repair Stations 17 | . 3 . 4 7 3 . . . . . . . Recycling Units 15 | . 6 . 1 . 1 7 . . . . . . Scanalyzers 16 | . . . 5 . 11 . . . . . . . Garrison Access 1 | . . . . 1 . . . . . . . . Terminal Hacks 32 | . 7 . . 11 8 1 3 . . . . 2 Record 16 | . 4 . . 4 3 1 2 . . . . 2 Robot Schematic 2 | . . . . 2 . . . . . . . . Prototype ID Bank 2 | . 1 . . 1 . . . . . . . . Open Door 1 | . . . . 1 . . . . . . . . Open DSF 1 | . . . . . 1 . . . . . . . Emergency Access Points 2 | . . . . 1 1 . . . . . . . Alert Level 1 | . . . . 1 . . . . . . . . Locate Traps 2 | . . . . 1 1 . . . . . . . Maintenance Status 1 | . . . . . 1 . . . . . . . Transport Status 1 | . 1 . . . . . . . . . . . Recall Extermination 1 | . . . . . 1 . . . . . . . Hauler Manifests 1 | . 1 . . . . . . . . . . . Zone Layout 1 | . . . . . . . 1 . . . . . Fabricator Hacks 2 | . . . . . 1 1 . . . . . . Load Schematic 1 | . . . . . 1 . . . . . . . Build 1 | . . . . . . 1 . . . . . . Repair Station Hacks 12 | . 2 . 3 6 1 . . . . . . . Scan Component 8 | . 2 . 2 3 1 . . . . . . . Repair 4 | . . . 1 3 . . . . . . . . Recycling Unit Hacks 11 | . 5 . 1 . 1 4 . . . . . . Process 1 | . . . . . . 1 . . . . . . Report Inventory 7 | . 3 . 1 . 1 2 . . . . . . Retrieve Matter 1 | . . . . . . 1 . . . . . . Retrieve Components 2 | . 2 . . . . . . . . . . . Scanalyzer 15 | . . . 4 . 11 . . . . . . . Insert Component 6 | . . . 2 . 4 . . . . . . . Analyze 9 | . . . 2 . 7 . . . . . . . Garrison Access Hacks 1 | . . . . 1 . . . . . . . . Seal Access 1 | . . . . 1 . . . . . . . . Unauthorized Hacks . | . . . . . . . . . . . . . Terminals . | . . . . . . . . . . . . . Fabricators . | . . . . . . . . . . . . . Repair Stations . | . . . . . . . . . . . . . Recycling Units . | . . . . . . . . . . . . . Scanalyzers . | . . . . . . . . . . . . . Garrison Access . | . . . . . . . . . . . . . Data Cores Recovered 2 | . 1 . . 1 . . . . . . . . Used . | . . . . . . . . . . . . . Hacking Detections 25 | . 6 . 3 4 6 4 1 . . . . 1 Full Trace Events 8 | . 4 . 1 . 3 . . . . . . . Feedback Events . | . . . . . . . . . . . . . Feedback Blocked . | . . . . . . . . . . . . . Robot Schematics Acquired 2 | . . . . 2 . . . . . . . . Robots Built . | . . . . . . . . . . . . . Authchips . | . . . . . . . . . . . . . Time . | . . . . . . . . . . . . . Total Robot Build Rating . | . . . . . . . . . . . . . Part Schematics Acquired 6 | . . . 2 . 4 . . . . . . . Parts Built 2 | . . . . . . 2 . . . . . . Authchips . | . . . . . . . . . . . . . Time 53 | . . . . . . 53 . . . . . . Total Part Build Rating 12 | . . . . . . 12 . . . . . . Parts Repaired 4 | . . . 1 3 . . . . . . . . Time 158 | . . . 44 114 . . . . . . . . Parts Recycled . | . . . . . . . . . . . . . Recycled Matter 72 | . . . . . . 72 . . . . . . Retrieved Matter 72 | . . . . . . 72 . . . . . . Retrieved Components 11 | . 11 . . . . . . . . . . . Parts Scanalyzed 6 | . . . 2 . 4 . . . . . . . Part Schematics Acquired 6 | . . . 2 . 4 . . . . . . . Parts Damaged 1 | . . . . . 1 . . . . . . . Bothacking | -11 -10 -10 -8 -8 -7 -6 -5 -5 -5 -4 -4 -4 ------------ Run | Yrd Mat Sub Mat Sto Fac Fac Fac Upp Upp Fac Was Fac Used RIF Installer . | . . . . . . . . . . . . . Robots Hacked 10 | . . . . 5 1 2 . 1 . 1 . . Non-combat 9 | . . . . 4 1 2 . 1 . 1 . . Combat 1 | . . . . 1 . . . . . . . . Robot Hacks Applied 17 | . . . . 10 3 2 . 1 . 1 . . parse_system 9 | . . . . 5 1 1 . 1 . 1 . . no_distress 6 | . . . . 4 1 1 . . . . . . find_recycling 1 | . . . . . 1 . . . . . . . check_alert 1 | . . . . 1 . . . . . . . . Relay Couplers Released . | . . . . . . . . . . . . . Fabnet Peak Effective % . | . . . . . . . . . . . . . Robots Rewired 2 | . . . . . . 1 . . . 1 . . Allies Hacked 2 | . . . . . 2 . . . . . . . Hacks Repelled . | . . . . . . . . . . . . . Allies | -11 -10 -10 -8 -8 -7 -6 -5 -5 -5 -4 -4 -4 -------- Run | Yrd Mat Sub Mat Sto Fac Fac Fac Upp Upp Fac Was Fac Total Allies 13 | . . . . 10 . 1 . . . 1 1 . Largest Group 10 | . . . . 10 9 1 . . . 1 1 . Highest-Rated Group 173 | . . . . 173 157 29 . . . 56 46 . Highest-Rated Ally 56 | . . . . 29 29 29 . . . 56 46 . Total Orders . | . . . . . . . . . . . . . Ally Attacks 143 | . . . . 31 88 8 . . . 5 11 . Total Damage 1969 | . . . . 343 1037 95 . . . 182 312 . Kills 19 | . . . . 6 9 1 . . . 3 . . Allies Corrupted . | . . . . . . . . . . . . . Allies Melted . | . . . . . . . . . . . . . Intel | -11 -10 -10 -8 -8 -7 -6 -5 -5 -5 -4 -4 -4 ------- Run | Yrd Mat Sub Mat Sto Fac Fac Fac Upp Upp Fac Was Fac Active Infowar (turns) 7573 | 45 1915 . 596 1760 1937 817 273 228 . . . 2 Sensors 3384 | . . . . 805 1937 318 140 184 . . . . Terrain 445 | 6 . . 439 . . . . . . . . . Traps 427 | . . . . . . . 267 160 . . . . Seismic 3198 | 39 1915 . 595 649 . . . . . . . . Jamming 144 | . . . . . . . 98 44 . . . 2 ECM 4512 | . . . 596 1760 1315 499 174 168 . . . . Robot Analysis Total . | . . . . . . . . . . . . . Derelict Logs Recovered 1 | . . . . . . . . 1 . . . . Drone Launches . | . . . . . . . . . . . . . Drone Recoveries . | . . . . . . . . . . . . . Exploration | -11 -10 -10 -8 -8 -7 -6 -5 -5 -5 -4 -4 -4 ------------- Run | Yrd Mat Sub Mat Sto Fac Fac Fac Upp Upp Fac Was Fac Turns Passed 12297 | 85 2732 515 645 1797 2296 1307 352 1779 208 447 102 32 Spaces Moved 6313 | 49 1410 261 331 726 1031 630 188 908 96 430 193 60 Core 211 | 20 . . . . . . . . . 86 45 60 Treads . | . . . . . . . . . . . . . Legs 5047 | 29 1410 222 . 453 1029 630 188 908 96 82 . . Wheels 645 | . . 39 331 273 2 . . . . . . . Hover 111 | . . . . . . . . . . 65 46 . Flight 299 | . . . . . . . . . . 197 102 . Fastest Speed 40 | 50 120 110 110 110 130 120 123 123 196 40 40 50 Average Speed 157 | 129 154 178 119 172 198 157 162 179 196 76 48 50 Slowest Speed 700 | 190 190 190 130 270 200 270 196 265 196 700 100 50 Overloaded Moves . | . . . . . . . . . . . . . Propulsion Burnouts . | . . . . . . . . . . . . . Robots Hopped . | . . . . . . . . . . . . . Potential Cave-ins 2 | . . . 2 . . . . . . . . . Cave-ins Triggered . | . . . . . . . . . . . . . Exploration Rate (%) 35 | 4 92 23 18 73 16 23 4 84 11 15 95 2 Regions Visited 12 Branch Regions 4 Pre-discovered Areas 1 | . . 1 . . . . . . . . . . Known Exits Taken 1 | . . . . 1 . . . . . . . . Unknown Exits Taken 9 | 1 1 1 1 . 1 1 1 1 1 . . . Scrap Searched 4 | . . . . . . . . 4 . . . . Spaces Dug 15 | . 9 . 4 2 . . . . . . . . Terrain Destroyed 48 | . 12 . 4 2 6 20 4 . . . . . Melee 1 | . . . . 1 . . . . . . . . Projectile 35 | . 9 . 4 1 6 11 4 . . . . . AOE 12 | . 3 . . . . 9 . . . . . . Terrain Rammed . | . . . . . . . . . . . . . Walls Destroyed . | . . . . . . . . . . . . . Machines Disabled . | . . . . . . . . . . . . . Actions | -11 -10 -10 -8 -8 -7 -6 -5 -5 -5 -4 -4 -4 --------- Run | Yrd Mat Sub Mat Sto Fac Fac Fac Upp Upp Fac Was Fac Total 8087 | 69 1836 296 545 1185 1206 851 215 1007 104 513 199 61 Wait 901 | . 249 3 154 307 50 112 8 6 . 11 1 . Move 6302 | 48 1409 260 330 725 1030 629 187 907 95 430 192 60 Hop . | . . . . . . . . . . . . . Pick Up 162 | 10 41 5 17 35 22 19 2 5 . 5 1 . Fast Attach 50 | 1 6 2 1 3 10 4 2 4 . 13 3 1 Attach 58 | 7 4 . 8 4 2 15 3 3 . 11 1 . Detach 9 | 1 . . 1 . 1 . . 1 . 5 . . Swap 110 | 1 28 8 5 26 19 11 3 7 . 2 . . Drop 119 | . 26 8 11 23 26 11 . 5 . 9 . . Fire 217 | 1 73 8 18 43 30 23 5 14 . 2 . . Melee 122 | . . 2 . 19 15 25 5 21 9 25 1 . Ram . | . . . . . . . . . . . . . Kick 3 | . . . . . 1 2 . . . . . . Crush . | . . . . . . . . . . . . . Escape Stasis . | . . . . . . . . . . . . . Rewire 34 | . . . . . . . . 34 . . . . Trap . | . . . . . . . . . . . . . Miscellaneous . | . . . . . . . . . . . . . Route ------- -11/Scrapyard -10/Materials (discovered 5 exits: *Mat x2 / [*Min x2] / [*Sub]) -10/Subcaves (discovered 2 exits: *Mat / [*Rec]) -8/Materials (discovered 2 exits: *Fac / *Sto) -8/Storage -7/Factory -6/Factory -5/Factory -5/Upper Caves -5/Upper Caves -4/Factory (discovered 2 exits: *Res x2) -4/Waste -4/Factory History --------- Turn | Location | Event 10 | -11/Scrapyard | Discovered new exit (range 16) 86 | -11/Scrapyard | Entered Materials 87 | -10/Materials | Met a group of wandering Federalists 225 | -10/Materials | Lost 3 allies 226 | -10/Materials | Discovered new exit (range 9) 314 | -10/Materials | Build established: Mutant 332 | -10/Materials | Discovered new exit (range 14) 647 | -10/Materials | Identified exit to Materials 1215 | -10/Materials | Discovered exit to Materials (range 6) 1631 | -10/Materials | Discovered new exit (range 6) 1694 | -10/Materials | Build established: Scavenger-Mutant 2148 | -10/Materials | Lost 4 parts (1u3w) 2394 | -10/Materials | Discovered new exit (range 11) 2415 | -10/Materials | Build established: Mutant 2818 | -10/Materials | Entered Subcaves 2819 | -10/Subcaves | Shifting Twisted Machinery released Piercing Trap 2819 | -10/Subcaves | Continued accompanying wandering Federalists (3) 2819 | -10/Subcaves | Approached by a straggling Scientist 2954 | -10/Subcaves | Learned location of Zion (-6) 2954 | -10/Subcaves | Met a Zionite searching for "candidates" 3056 | -10/Subcaves | Discovered new exit (range 14) 3070 | -10/Subcaves | Lost 3 allies 3127 | -10/Subcaves | Discovered new exit (range 10) 3333 | -10/Subcaves | Entered Materials 3333 | -8/Materials | Evolved 4 slots: Utility x4 3533 | -8/Materials | Build established: Scavenger-Mutant 3683 | -8/Materials | Discovered new exit (range 7) 3683 | -8/Materials | Discovered new exit (range 3) 3900 | -8/Materials | Repaired Broken Sub. Monowheel 3978 | -8/Materials | Entered Storage 4552 | -8/Storage | Build established: Mutant 5201 | -8/Storage | Assisted by bots powering up and referring to "LRC-V3" 5393 | -8/Storage | Repaired Broken Sub. Power Source 5438 | -8/Storage | Repaired Broken Sub. Monowheel 5507 | -8/Storage | Build established: Commander-Mutant 5510 | -8/Storage | Discovered new exit (range 15) 5593 | -8/Storage | Identified exit to Factory 5671 | -8/Storage | Repaired Lrg. Storage Unit 5775 | -8/Storage | Entered Factory 5775 | -7/Factory | Accompanied by 9 allies 5775 | -7/Factory | Evolved 2 slots: Power x1, Utility x1 6079 | -7/Factory | Lost 3 allies 6349 | -7/Factory | Build established: Hacker-Mutant 7932 | -7/Factory | Discovered new exit (range 15) 8071 | -7/Factory | Entered another Factory area 8071 | -6/Factory | Evolved 2 slots: Propulsion x1, Utility x1 8263 | -6/Factory | Fabricated Adv. Plasma Cannon? 8536 | -6/Factory | Lost 7 parts (2p2n3u) 9002 | -6/Factory | Build established: Mutant 9303 | -6/Factory | Discovered new exit (range 5) 9378 | -6/Factory | Entered another Factory area 9378 | -5/Factory | Evolved 2 slots: Utility x2 9605 | -5/Factory | Discovered new exit (range 7) 9730 | -5/Factory | Entered Upper Caves 9852 | -5/Upper Caves | Build established: Infiltrator-Gladiator 9945 | -5/Upper Caves | Lost 6 parts (6u) 10202 | -5/Upper Caves | Build established: Gladiator 10671 | -5/Upper Caves | Learned location of 1 exit from Factory 11115 | -5/Upper Caves | Attracted the attention of an 0b10 checkpoint 11124 | -5/Upper Caves | Build established: Mutant 11201 | -5/Upper Caves | Discovered new exit (range 14) 11509 | -5/Upper Caves | Entered another Upper Caves area 11538 | -5/Upper Caves | Build established: Scavenger-Gladiator 11600 | -5/Upper Caves | Discovered new exit (range 3) 11670 | -5/Upper Caves | Attracted the attention of an 0b10 base 11717 | -5/Upper Caves | Entered Factory 11717 | -4/Factory | Evolved 2 slots: Weapon x2 11718 | -4/Factory | Identified exit to Research 12003 | -4/Factory | Lost 20 parts (3p4n6u7w) 12076 | -4/Factory | Core integrity fell below 50% 12159 | -4/Factory | Discovered exit to Research (range 11) 12163 | -4/Factory | Garrison activated, responded to threat 12164 | -4/Factory | Sucked down chute 12164 | -4/Factory | Entered Waste 12165 | -4/Waste | Met a frightened Derelict 12178 | -4/Waste | Spotted C-40 Crusher 12179 | -4/Waste | EMP discharged 12179 | -4/Waste | System corruption reached 10% 12191 | -4/Waste | Spotted C-40 Crusher 12194 | -4/Waste | Spotted C-40 Crusher 12194 | -4/Waste | Spotted C-40 Crusher 12208 | -4/Waste | Build established: Mutant 12208 | -4/Waste | Crushed by Compactor (1 part destroyed, 1 dropped) 12211 | -4/Waste | Crushed by Compactor (1 part destroyed, 1 dropped) 12218 | -4/Waste | Crushed by Compactor (1 part destroyed, 2 dropped) 12247 | -4/Waste | Spotted C-40 Crusher 12249 | -4/Waste | Lost 3 parts (1n1u1w) 12253 | -4/Waste | Spotted C-40 Crusher 12259 | -4/Waste | Discovered new exit (range 14) 12260 | -4/Waste | Crushed by Compactor (1 part destroyed) 12266 | -4/Waste | Entered Factory 12298 | -4/Factory | Core integrity fell below 20% 12298 | -4/Factory | Destroyed by G-67 Veteran with Plasma Rifle Last Messages --------------- >>Query(Tinkerers) I have no idea where Tinkerers came from, but a large number of them suddenly appeared in the [Caves] and have begun devising a variety of new robots. They are incredibly resourceful and inventive, and many seem to be aiding [Warlord]. 12296_ ALERT: All DSF locations entering lockdown mode. 12297_ Triggered Gamma Bomb Trap. 12297_ A bubble of electromagnetic force engulfs the area. 12297_ Gamma Bomb Trap short circuited. 12297_ A bubble of electromagnetic force engulfs the area. 12297_ Gamma Bomb Trap short circuited. 12297_ A bubble of electromagnetic force engulfs the area. 12297_ W-44 Eye distress signal jammed. 12297_ Slug penetrates Wall. Map ----- +----------------------------------------------------+ | ?????????????????????????????????????????????????? | | ?????????????????????????????????????????????????? | | ?????????????????????????????????????????????????? | | ?????????????????????????????????????????????????? | | ?????????????????????????????????????????????????? | | ?????????????????????????????????????????????????? | | ?????????????????????????????????????????????????? | | ?????????????????????????????????????????????????? | | ?????????????????????????????????????????????????? | | ?????????????????????????????????????????????????? | | ?????????????????????????????????????????????????? | | ?????????????????????????????????????????????????? | | ??????????????????#########??????????############# | | ??????????????????# ????#?????# | | ??????????????????+ ! ??? #?????# ] | | ??????????????????# ?? #?????# """ """ | | ??????????????????# #?????# """ """ | | ??????????????????# """ #?????# """ """ | | ??????????????????# """ ##????# | | ??????????????????# w """ #????# """ """ | | ??????????????????# ! ! #????# """ """ | | ??????????????????# ! ##???# """ """ | | ??????????????????# #???# | | ??????????????????# Y #???# | | ??????????????????# ##???# | | ????????????? ##### @ ###########+##### | | ??????????? #? | | ??????????? #? | | ??????????? #? | | ??????????? g g ^ #? | | ???????????? #? | | ????????????# ############ ##################? | | ????????????# ????????# ! #?????????????? | | ????????????? ?????????# #?????????????? | | ????????????? ???????????# "" "" #?????????????? | | ?????????????????????????# "" "" #?????????????? | | ?????????????????????????# """ T" #?????????????? | | ?????????????????????????# """ "" #?????????????? | | ?????????????????????????# """ "" #?????????????? | | ?????????????????????????# #?????????????? | | ?????????????????????????###########?????????????? | | ?????????????????????????????????????????????????? | | ?????????????????????????????????????????????????? | | ?????????????????????????????????????????????????? | | ?????????????????????????????????????????????????? | | ?????????????????????????????????????????????????? | | ?????????????????????????????????????????????????? | | ?????????????????????????????????????????????????? | | ?????????????????????????????????????????????????? | | ?????????????????????????????????????????????????? | +----------------------------------------------------+ Best States ------------- Heat Dissipation 78 Energy Generation 45 Energy Capacity 560 Matter Stores 450 Matter Capacity 450 Sight Range 16 Robot Scan Range 16 Terrain Scan Range 16 Terrain Scan Density 10 ECM Strength 1 Jamming Range 14 Additional Mass Support 12 Base Temperature (-) 150 Armor Coverage 825 Resistance: EX 50 Propulsion Shielding 90 Point Defense Rating 80 Melee Speed Boost 20 Evasion (%) 80 Melee Accuracy 6 Particle Charging 15 Offensive Hacking 10 Defensive Hacking 10 Item Schematics ----------------- Hrd. Light Armor Plating | -8/Materials | Scanalyzed Sub. Power Source | -8/Materials | Scanalyzed Sub. Monowheel | -7/Factory | Scanalyzed Drone Bay | -7/Factory | Scanalyzed Adv. Weight Redist. System | -7/Factory | Scanalyzed Imp. Light Armor Plating | -7/Factory | Scanalyzed Robot Schematics ------------------ G-34 Mercenary | -8/Storage | Hacked L-31 Rogue | -8/Storage | Hacked Fabricated ------------ Adv. Plasma Cannon | x2 | -6/Factory | Preloaded Repaired ---------- Sub. Monowheel | 55% | -8/Materials | Broken Sub. Power Source | 84% | -8/Storage | Broken Sub. Monowheel | 86% | -8/Storage | Broken Lrg. Storage Unit | 63% | -8/Storage Alien Tech Used ----------------- None Achievements -------------- Dodgeball, But With Guns Just What I Needed Challenges ------------ None Game ------ Seed LobotomyGravmagCorpse Manual? 0 Play Time 03:44:48 Cumulative 21.2 hours Start 2025.06.13 @ 18:25:21 End 2025.06.18 @ 21:41:11 Sessions 4 Manual Loads 0 Difficulty Rogue Special Mode None Game No. 19 Rogue 19 Adventurer 0 Explorer 0 Win Type - Total 0 Types 0/0/0/0/0/0/0/0/0/0 Lore% 12 Gallery% 24 Achievement% 20 Wizard Run 0 Options --------- Layout 1 ASCII 0 Keyboard 0 Movement Numpad Keybinds 0 Fullscreen 1 Font 24/Smallcaps Map View 50x35 Zoom Use 0% Tactical HUD 1 Map Filters NONE Filters NONE Steam 1 RUN: 50609959-1d69-4ee6-bec3-4468cccb0a2b